bitfinex-derivatives/quotes_ETHF0:USTF0_20250712
["timestamp","ask_amount","ask_price","bid_price","bid_amount"]
[1752339083491,3.23818,2929.1,2929.0,0.68258]
[1752339083684,2.5556,2929.1,2929.0,1.33798]
[1752339084188,2.5556,2929.1,2929.0,2.32438]
[1752339084387,2.5556,2929.1,2929.0,3.23708]
[1752339084985,3.2078,2929.3,2929.2,3.23704]
[1752339085189,6.44592,2929.3,2929.2,3.23704]
[1752339085989,6.44592,2929.3,2929.2,1.33794]
[1752339086386,6.44592,2929.3,2929.2,0.6554]
[1752339087384,1.34296,2929.1,2929.0,2.5545]
[1752339087589,3.23816,2929.1,2929.0,3.23708]
[1752339088294,3.2382,2929.0,2928.9,0.68259]
[1752339088492,3.2382,2929.0,2928.9,1.33799]
[1752339089193,3.2382,2929.0,2928.9,0.6554]
[1752339089596,3.2382,2929.0,2928.9,1.33801]
[1752339090990,3.2382,2929.0,2928.9,0.6554]
[1752339091187,3.2382,2929.0,2928.9,1.33801]
[1752339092100,3.2382,2929.0,2928.9,2.32441]
[1752339092295,0.9018,2929.0,2928.9,4.32937582]
[1752339092600,3.89031,2929.3,2929.2,2.32434]
[1752339092795,6.44591,2929.3,2929.2,3.23704]
[1752339092995,5.7634,2929.3,2929.2,3.23704]
[1752339093195,2.5556,2929.3,2929.2,3.23704]
[1752339093391,3.23811,2929.3,2929.2,3.23704]
[1752339093596,0.6825,2929.4,2929.3,3.23701]
[1752339093798,3.2381,2929.4,2929.3,3.23701]
[1752339094295,2.5556,2929.4,2929.3,3.23701]
[1752339094498,3.2078,2929.6,2929.5,3.23697]
[1752339094697,3.2078,2929.6,2929.5,4.32923582]
[1752339094897,6.44584,2929.6,2929.5,3.23697]
[1752339095698,6.44584,2929.6,2929.5,2.5545]
[1752339095899,6.44584,2929.6,2929.5,3.23697]
[1752339096202,7.53810582,2929.6,2929.5,0.6554]
[1752339097798,1.5971,2929.4,2929.3,0.6569]
[1752339098004,3.18529,2929.4,2929.3,0.6569]
[1752339098705,3.18529,2929.4,2929.3,3.20861]
[1752339099402,3.18290197,2929.4,2929.3,3.20861]
[1752339100603,3.18290197,2929.4,2929.3,2.5261]
[1752339102112,3.18290197,2929.4,2929.3,0.6569]
[1752339102309,3.18290197,2929.4,2929.1,0.9243]
[1752339102310,2.27964,2929.2,2929.1,3.20865]
[1752339102510,3.18534,2929.2,2929.1,1.33945]
[1752339103709,3.18534,2929.2,2929.1,3.20865]
[1752339106708,3.18534,2929.2,2929.1,0.6569]
[1752339107410,0.68261,2928.9,2928.8,2.55182]
[1752339107616,3.18541,2928.9,2928.8,3.20872]
[1752339107814,3.18541,2928.9,2928.8,3.20873]
[1752339108515,0.68261,2928.9,2928.8,3.20873]
[1752339110711,2.2797,2929.0,2928.9,3.20868]
[1752339111214,3.1854,2929.0,2928.9,3.20868]
[1752339118322,3.1854,2929.0,2928.9,2.5261]
[1752339118523,3.1854,2929.0,2928.9,3.20871]
[1752339119225,3.1854,2929.0,2928.9,2.5261]
[1752339119525,3.1854,2929.0,2928.9,0.6569]
[1752339119822,3.1854,2929.0,2928.9,1.6018]
[1752339120022,3.1854,2929.0,2928.9,2.5261]
[1752339120424,3.1854,2929.0,2928.9,3.20871]
[1752339120824,3.1854,2929.0,2928.9,2.5261]
[1752339121122,0.68268,2928.6,2928.5,3.8647]
[1752339121422,0.68268,2928.6,2928.3,0.6569]
[1752339121423,3.18552,2928.4,2928.3,0.6569]
[1752339121627,3.18552,2928.4,2928.1,0.9449]
[1752339121628,1.34857,2928.2,2928.1,1.6018]
[1752339121921,3.18557,2928.2,2928.1,2.5261]
[1752339123232,5.48764,2928.4,2928.3,0.68275]
[1752339123420,6.39334,2928.4,2928.3,2.5261]
[1752339124123,6.39334,2928.4,2928.3,3.20885]
[1752339124326,6.39334,2928.4,2928.3,2.5261]
[1752339124733,6.39334,2928.4,2928.3,0.6569]
[1752339125028,6.39334,2928.4,2928.2,0.6569]
[1752339125029,3.18555,2928.3,2928.2,0.6569]
[1752339125227,3.18555,2928.3,2928.0,1.8692]
[1752339125228,0.68279,2928.1,2928.0,1.8692]
[1752339125421,3.18559,2928.1,2928.0,2.5261]
[1752339125725,2.5028,2928.1,2928.0,3.20892]
[1752339126329,3.18559,2928.1,2928.0,3.20892]
[1752339126833,3.18559,2928.1,2928.0,0.6569]
[1752339127025,3.2078,2928.4,2927.9,0.68283]
[1752339127026,3.21342,2928.0,2927.9,3.26333]
[1752339127227,0.5422,2927.2,2927.1,3.01790914]
[1752339127426,4.6887,2927.2,2927.1,1.6473]
[1752339127726,3.2078,2927.2,2927.1,3.26353]
[1752339127928,3.75,2927.2,2927.1,0.68303]
[1752339128129,3.75,2927.2,2927.0,1.09226582]
[1752339128130,1.4809,2927.1,2927.0,1.6473]
[1752339128328,2.16393,2927.1,2927.0,1.6473]
[1752339129529,2.50363,2927.1,2927.0,1.6473]
[1752339130033,0.5422,2926.8,2926.7,0.68311]
[1752339130233,4.6887,2926.8,2926.7,1.34841]
[1752339130532,4.6887,2926.8,2926.7,1.34842]
[1752339130729,4.6887,2926.8,2926.7,2.33042]
[1752339130931,4.6887,2926.8,2926.7,3.26362]
[1752339131334,5.3718,2926.8,2926.7,1.6473]
[1752339131527,6.80376582,2926.8,2926.7,0.982]
[1752339131727,0.5422,2926.6,2926.5,2.33046]
[1752339131922,2.50374,2926.6,2926.5,2.33046]
[1752339132129,3.59600582,2926.6,2926.5,1.6473]
[1752339132330,0.68319,2926.5,2926.2,0.68322]
[1752339132628,0.9387,2926.2,2926.1,0.6653]
[1752339132829,4.63976582,2926.3,2926.1,0.6653]
[1752339132830,3.2078,2926.3,2926.2,1.9152]
[1752339133028,3.2078,2926.3,2926.2,3.26374]
[1752339134436,4.1465,2926.3,2926.2,3.26374]
[1752339134837,3.2078,2926.3,2926.2,4.35600582]
[1752339135038,3.2078,2926.3,2926.2,3.26374]
[1752339135532,0.9352,2927.2,2927.0,1.5985]
[1752339135732,2.5306,2927.4,2927.3,1.5985]
[1752339136641,2.5306,2927.4,2927.3,2.28148]
[1752339136938,2.5306,2927.4,2927.3,3.26348]
[1752339137139,3.21356,2927.4,2927.3,2.5805]
[1752339137528,2.5306,2927.4,2927.3,3.26348]
[1752339138840,3.21356,2927.4,2927.3,3.26348]
[1752339139242,3.21356,2927.4,2927.3,2.5805]
[1752339139440,3.21356,2927.4,2927.3,3.26348]
[1752339139844,2.5306,2927.4,2927.3,3.26348]
[1752339140042,3.21356,2927.4,2927.3,3.26348]
[1752339140543,2.5306,2927.4,2927.3,3.26348]
[1752339140740,2.5306,2927.4,2927.3,1.34828]
[1752339141440,2.5306,2927.4,2927.3,3.26348]
[1752339144842,5.48261,2927.6,2927.5,3.26343]
[1752339145441,6.42131,2927.6,2927.5,3.26343]
[1752339146446,7.51357582,2927.6,2927.5,2.5805]
[1752339146837,7.51357582,2927.6,2927.5,0.6653]
[1752339147044,7.51357582,2927.6,2927.5,1.34823]
[1752339147345,7.51357582,2927.6,2927.5,0.6653]
[1752339148241,0.6567,2927.5,2927.3,1.9152]
[1752339148448,0.6567,2927.5,2927.1,0.6653]
[1752339148449,3.2136,2927.2,2927.1,0.6653]
[1752339148644,4.30586582,2927.2,2927.1,0.6653]
[1752339149539,3.2137,2926.8,2926.7,1.6473]
[1752339149739,3.21374,2926.6,2926.5,2.5805]
[1752339150442,3.21374,2926.6,2926.5,3.26365]
[1752339150643,3.21374,2926.6,2926.5,0.6653]
[1752339151346,1.09226582,2926.8,2926.5,0.6653]
[1752339151347,1.5954,2926.8,2926.7,1.3484]
[1752339151646,3.21371,2926.8,2926.7,2.5805]
[1752339152352,3.21371,2926.8,2926.7,3.26362]
[1752339152541,3.21371,2926.8,2926.7,2.5805]
[1752339154838,2.5306,2926.6,2926.5,0.6653]
[1752339155046,2.5306,2926.6,2926.5,2.5805]
[1752339155346,3.21374,2926.6,2926.5,3.26367]
[1752339155647,3.21378,2926.5,2926.4,1.34848]
[1752339155952,3.21378,2926.5,2926.4,0.6653]
[1752339156149,6.42158,2926.5,2926.4,0.6653]
[1752339156450,6.42158,2926.5,2926.2,0.982]
[1752339156451,5.7384,2926.5,2926.2,0.982]
[1752339156651,3.35937582,2926.3,2926.2,0.6369]
[1752339156842,4.30757582,2926.3,2926.2,0.6369]
[1752339157449,3.21536,2926.1,2926.0,2.22277]
[1752339157749,2.5321,2926.1,2926.0,3.14017]
[1752339158154,3.21536,2926.1,2926.0,3.14017]
[1752339158348,2.5321,2926.1,2926.0,3.14017]
[1752339158548,3.21536,2926.1,2926.0,3.14017]
[1752339159454,2.5321,2926.1,2926.0,3.14017]
[1752339159756,3.21536,2926.1,2926.0,2.23757]
[1752339159957,3.21536,2926.1,2926.0,2.4569]
[1752339160354,3.21536,2926.1,2926.0,3.14018]
[1752339160854,3.21536,2926.1,2926.0,2.4569]
[1752339161057,3.21536,2926.1,2926.0,3.14018]
[1752339161452,3.21536,2926.1,2926.0,2.4569]
[1752339162357,3.21536,2926.1,2926.0,3.14018]
[1752339163148,0.68328,2926.0,2925.9,0.6833]
[1752339163456,2.26723,2925.9,2925.8,3.14021]
[1752339163759,3.21543,2925.9,2925.8,3.14021]
[1752339164358,3.21541,2925.9,2925.8,3.14021]
[1752339165358,2.5321,2925.9,2925.8,3.14021]
[1752339165548,3.2078,2926.2,2926.0,0.68326]
[1752339165753,3.21536,2926.1,2926.0,3.14016]
[1752339167858,2.5321,2926.1,2926.0,3.14016]
[1752339168453,0.667,2926.1,2926.0,3.14016]
[1752339168654,0.667,2926.3,2926.2,3.14014]
[1752339168862,6.42309,2926.5,2926.4,2.22269]
[1752339169052,6.42309,2926.5,2926.4,3.14009]
[1752339169259,6.42309,2926.5,2926.4,2.4569]
[1752339169656,6.42309,2926.5,2926.4,3.14009]
[1752339171069,6.42309,2926.5,2926.4,2.4569]
[1752339171764,6.42309,2926.5,2926.4,3.14009]
[1752339172666,3.21529,2926.5,2926.4,3.14009]
[1752339176170,3.21290152,2926.5,2926.4,3.14009]
[1752339178770,2.52971152,2926.5,2926.4,3.14009]
[1752339178961,3.21288152,2926.5,2926.4,3.14009]
[1752339179968,2.52971152,2926.5,2926.4,3.14009]
[1752339180168,3.21288152,2926.5,2926.4,3.14009]
[1752339184270,3.21288152,2926.5,2926.4,2.4569]
[1752339184473,3.21288152,2926.5,2926.4,3.14009]
[1752339187075,3.21288152,2926.5,2926.4,2.4569]
[1752339187466,3.21288152,2926.5,2926.4,3.14009]
[1752339187971,2.52971152,2926.5,2926.4,3.14009]
[1752339188174,1.58151152,2926.5,2926.4,3.14009]
[1752339188477,2.54191152,2926.5,2926.4,3.14009]
[1752339188868,0.6195,2926.8,2926.7,3.27002]
[1752339189074,2.547,2927.0,2926.9,1.28657]
[1752339189278,2.547,2927.0,2926.9,3.26997]
[1752339189675,3.23002,2927.2,2927.1,3.26991]
[1752339191174,3.23002,2927.2,2927.1,2.5869]
[1752339191374,3.23002,2927.2,2927.1,3.26993]
[1752339191579,3.23,2927.2,2927.1,3.26993]
[1752339195484,2.547,2927.2,2927.1,3.26993]
[1752339196285,3.23,2927.2,2927.1,3.26993]
[1752339196486,2.547,2927.2,2927.1,3.26993]
[1752339199678,3.23,2927.2,2927.1,3.26993]
[1752339199989,3.23,2927.2,2927.1,2.5869]
[1752339200188,3.23,2927.2,2927.1,3.26993]
[1752339201490,2.547,2927.2,2927.1,3.26993]
[1752339202892,5.7548,2927.4,2927.3,3.26988]
[1752339203194,6.84706582,2927.4,2927.3,3.26988]
[1752339203789,7.53003582,2927.4,2927.3,3.26988]
[1752339203990,3.2078,2927.4,2927.3,3.26988]
[1752339205294,1.9275,2927.6,2927.5,2.28103]
[1752339205592,1.9275,2927.6,2927.5,3.26983]
[1752339205593,0.9604,2927.6,2927.5,3.26983]
[1752339206094,1.5866,2927.7,2927.6,1.28641]
[1752339206294,2.547,2927.7,2927.6,3.26981]
[1752339210493,0.6195,2927.9,2927.8,2.28096]
[1752339210700,1.5866,2927.9,2927.8,3.26976]
[1752339210998,2.547,2927.9,2927.8,3.26976]
[1752339213392,3.22984,2927.9,2927.8,3.26976]
[1752339213594,2.547,2927.9,2927.8,3.26976]
[1752339221101,0.6828,2928.1,2928.0,0.68282]
[1752339221299,3.16724305,2928.1,2928.0,1.34732]
[1752339221506,3.16724305,2928.1,2928.0,3.29742]
[1752339222001,3.41054305,2928.1,2928.0,3.29742]
[1752339222207,2.4818,2928.1,2928.0,3.29742]
[1752339224106,3.16459,2928.1,2928.0,3.29742]
[1752339224294,2.4818,2928.1,2928.0,3.29742]
[1752339225199,3.2078,2928.2,2928.1,0.68279]
[1752339225401,2.4818,2928.2,2928.1,2.32639]
[1752339225899,2.4818,2928.2,2928.1,3.29739]
[1752339226905,5.6896,2928.5,2928.4,1.34722]
[1752339227105,5.6896,2928.5,2928.4,3.29732]
[1752339227609,2.4818,2928.5,2928.4,3.29732]
[1752339228306,2.4818,2928.7,2928.6,3.29728]
[1752339231108,0.6172,2928.4,2928.3,1.9501]
[1752339231298,2.23852,2928.0,2927.9,0.68283]
[1752339231499,2.95686582,2928.0,2927.7,0.971]
[1752339231810,3.57406582,2927.8,2927.7,1.34738]
[1752339232109,4.25692582,2927.8,2927.7,1.34738]
[1752339234806,0.6172,2927.4,2927.3,2.63308]
[1752339235006,0.6172,2927.4,2927.3,2.32658]
[1752339235007,4.25702582,2927.4,2927.3,2.32658]
[1752339235216,3.57406582,2927.4,2927.3,2.32658]
[1752339235506,3.57406582,2927.4,2927.3,1.34748]
[1752339235905,3.57406582,2927.4,2927.3,0.68298]
[1752339236305,4.25702582,2927.4,2927.3,0.68298]
[1752339236810,3.57406582,2927.4,2927.3,0.68298]
[1752339237411,2.4818,2927.4,2927.3,1.34748]
[1752339237604,2.4818,2927.4,2927.3,3.29758]
[1752339238405,2.4818,2927.4,2927.3,2.32658]
[1752339239011,2.4818,2927.4,2927.3,3.29758]
[1752339239807,2.4818,2927.4,2927.3,0.6645]
[1752339240014,1.5557,2927.2,2927.1,1.34752]
[1752339240209,2.4818,2927.2,2927.1,1.34752]
[1752339240510,3.1648,2927.2,2927.1,1.34752]
[1752339241517,3.1648,2927.2,2927.0,0.68304]
[1752339241711,2.4818,2927.1,2927.0,24.80054]
[1752339242101,3.16483,2927.1,2927.0,24.80054]
[1752339243412,3.16483,2927.1,2927.0,0.6645]
[1752339243904,3.16483,2927.1,2927.0,1.34755]
[1752339244510,1.30027,2927.0,2926.9,0.68306]
[1752339244707,3.33103582,2927.0,2926.9,0.68306]
[1752339245213,4.91522,2927.4,2927.1,0.68303]
[1752339245214,2.4818,2927.2,2927.1,0.68303]
[1752339245515,2.4818,2927.2,2927.1,4.38989582]
[1752339245712,3.1648,2927.2,2927.1,3.29763]
[1752339246013,2.4818,2927.2,2927.1,3.29763]
[1752339248116,3.1648,2927.2,2927.1,3.29763]
[1752339248319,2.4818,2927.2,2927.1,3.29763]
[1752339248819,3.1648,2927.2,2927.1,3.29763]
[1752339249016,3.1648,2927.2,2927.1,2.6146]
[1752339249410,1.29113,2927.1,2927.0,6.0]
[1752339249617,4.35899582,2927.1,2927.0,6.0]
[1752339249817,4.35899582,2927.1,2927.0,6.68305]
[1752339250722,7.56679582,2927.1,2927.0,6.0]
[1752339253018,4.35899582,2927.1,2927.0,6.0]
[1752339253415,1.2912,2926.8,2926.7,0.68311]
[1752339253617,2.27092,2926.7,2926.6,3.23053]
[1752339253816,3.26682,2926.7,2926.6,1.29423]
[1752339254921,3.26687,2926.5,2926.4,3.23055]
[1752339255118,3.26687,2926.5,2926.4,1.29425]
[1752339255324,3.26689,2926.4,2926.3,1.29429]
[1752339255817,2.5837,2926.4,2926.3,2.22719]
[1752339256122,2.5837,2926.4,2926.3,3.23059]
[1752339256616,1.29123,2926.7,2926.6,0.68314]
[1752339256824,2.5837,2926.7,2926.6,3.23054]
[1752339257011,3.26682,2926.7,2926.6,3.23054]
[1752339259018,3.26682,2926.7,2926.6,1.6145]
[1752339259217,2.5837,2926.4,2926.3,2.5474]
[1752339260919,2.5837,2926.4,2926.3,3.23061]
[1752339262316,3.26689,2926.4,2926.3,3.23061]
[1752339264219,1.9756,2926.2,2926.1,0.68324]
[1752339264424,2.5837,2926.2,2926.1,0.68324]
[1752339264723,2.5837,2926.2,2926.1,1.29434]
[1752339265612,3.26696,2926.2,2926.1,0.6111]
[1752339265822,2.5837,2926.1,2926.0,24.12127]
[1752339266020,3.26696,2926.1,2926.0,0.6111]
[1752339267527,1.9756,2926.1,2925.7,0.68334]
[1752339267818,1.5878,2925.6,2925.5,26.66978]
[1752339268026,2.5837,2925.6,2925.5,3.23078]
[1752339269124,3.26708,2925.6,2925.5,3.23078]
[1752339269325,3.26708,2925.6,2925.5,0.6111]
[1752339269821,3.26708,2925.6,2925.5,1.2945]
[1752339270528,3.26708,2925.6,2925.5,0.6111]
[1752339270827,3.26708,2925.6,2925.5,1.2945]
[1752339271922,2.5837,2925.6,2925.5,1.2945]
[1752339272925,2.5837,2925.1,2925.0,3.2078]
[1752339273130,1.5878,2925.0,2924.9,0.68354]
[1752339273326,2.27134,2924.9,2924.8,0.6111]
[1752339273529,1.5878,2924.9,2924.8,2.22756]
[1752339273823,4.30006582,2925.3,2924.9,3.23094]
[1752339273824,2.5837,2925.0,2924.9,3.23094]
[1752339274029,1.604,2924.8,2924.7,24.74969]
[1752339274231,2.5837,2924.8,2924.7,24.74969]
[1752339274524,3.26726,2924.8,2924.7,1.29469]
[1752339274729,3.26726,2924.8,2924.7,0.6111]
[1752339274923,2.5837,2924.8,2924.7,1.29469]
[1752339275119,2.5837,2924.8,2924.7,2.22759]
[1752339275426,2.5837,2924.8,2924.7,1.29469]
[1752339275627,3.26726,2924.8,2924.7,0.6111]
[1752339275817,2.5837,2924.8,2924.7,0.6111]
[1752339276024,4.35952582,2924.8,2924.7,0.6111]
[1752339276227,1.28569,2924.7,2924.6,0.6836]
[1752339276530,2.5091,2924.7,2924.6,0.6836]
[1752339276729,3.19269,2924.7,2924.6,0.6836]
[1752339276930,2.5091,2924.7,2924.6,0.6836]
[1752339277223,2.5091,2924.7,2924.6,3.2111]
[1752339277424,2.5091,2924.7,2924.6,0.6836]
[1752339277628,2.5091,2924.3,2924.2,3.21121]
[1752339277823,2.5091,2924.5,2924.4,2.23876]
[1752339278031,2.5091,2924.5,2924.4,3.21116]
[1752339278327,5.7169,2924.7,2924.6,3.21111]
[1752339278828,6.40049,2924.7,2924.6,0.6036]
[1752339279023,1.28575,2924.5,2924.4,0.6036]
[1752339279224,2.37801582,2924.5,2924.4,0.6036]
[1752339279628,4.28501582,2924.5,2924.4,0.6036]
[1752339280520,0.68373,2924.2,2924.0,0.9724]
[1752339280720,3.60136582,2924.2,2924.1,2.25973]
[1752339281028,2.5091,2924.2,2924.1,3.21123]
[1752339281427,4.8103,2924.4,2924.3,2.25968]
[1752339281630,5.7169,2924.4,2924.3,3.21118]
[1752339282329,5.7169,2924.4,2923.9,2.80165582]
[1752339282330,1.907,2924.3,2923.8,0.9515]
[1752339282524,2.5091,2923.9,2923.8,3.2113]
[1752339283424,5.7169,2924.4,2924.3,0.68368]
[1752339283623,3.19278,2924.3,2924.2,0.6036]
[1752339284023,2.5091,2924.3,2924.2,1.2873]
[1752339284619,2.5091,2924.3,2924.2,3.2112]
[1752339285528,3.8099,2924.4,2924.3,1.28728]
[1752339285723,5.7169,2924.4,2924.3,3.21118]
[1752339287025,3.8099,2924.4,2924.3,3.21118]
[1752339287224,3.2078,2924.4,2924.3,3.21118]
[1752339288433,2.5091,2924.6,2924.5,2.23873]
[1752339288632,2.5091,2924.6,2924.5,3.21113]
[1752339289930,3.60136582,2924.6,2924.5,3.21113]
[1752339292029,2.5091,2924.6,2924.5,3.21113]
[1752339292325,0.6021,2924.6,2924.5,3.21113]
[1752339292527,1.907,2924.8,2924.7,1.28719]
[1752339292833,0.6021,2924.8,2924.7,3.21109]
[1752339293032,3.8099,2924.9,2924.8,0.68356]
[1752339293333,5.7169,2924.9,2924.8,3.21106]
[1752339294037,0.6021,2924.9,2924.8,3.21106]
[1752339294233,1.6025,2925.1,2925.0,3.21102]
[1752339294431,2.5091,2925.1,2925.0,3.21102]
[1752339294733,2.5091,2925.4,2925.3,3.21095]
[1752339296531,5.7169,2925.6,2925.5,3.2109]
[1752339296931,3.2078,2925.6,2925.5,3.2109]
[1752339297135,3.2078,2925.9,2925.8,3.21083]
[1752339297336,1.6025,2926.1,2926.0,1.28688]
[1752339297531,2.5091,2926.1,2926.0,3.21078]
[1752339298626,3.60136582,2926.1,2926.0,3.21078]
[1752339300835,3.60136582,2926.1,2926.0,2.25928]
[1752339301030,3.60136582,2926.1,2926.0,0.68328]
[1752339301734,3.60136582,2926.1,2926.0,1.28688]
[1752339304334,2.5091,2926.1,2926.0,3.21078]
[1752339304532,3.2078,2926.2,2926.1,3.21076]
[1752339304728,5.7169,2926.2,2926.1,2.5275]
[1752339304933,0.6021,2926.1,2926.0,0.68327]
[1752339305132,3.60136582,2926.1,2926.0,0.68327]
[1752339305533,4.28462582,2926.1,2926.0,0.68327]
[1752339305737,3.60136582,2926.1,2926.0,0.68327]
[1752339306327,3.60136582,2926.1,2925.8,0.9515]
[1752339306328,0.6512,2925.9,2925.8,1.5916]
[1752339306634,1.33457,2925.7,2925.4,0.9844]
[1752339306834,2.637,2925.6,2925.5,3.2183]
[1752339307436,3.72926582,2925.6,2925.5,3.2183]
[1752339307931,3.2078,2925.9,2925.8,0.68333]
[1752339308138,5.8448,2925.9,2925.8,3.21823]
[1752339309046,6.52811,2925.9,2925.8,2.23383]
[1752339309737,3.32031,2925.9,2925.8,2.23383]
[1752339309939,2.637,2925.9,2925.8,3.21823]
[1752339324345,2.637,2925.9,2925.8,9.21823]
[1752339324945,3.32031,2925.9,2925.8,6.0]
[1752339325451,4.26745107,2925.9,2925.8,6.0]
[1752339325944,9.26745107,2925.9,2925.8,4.7978]
[1752339326246,1.67482,2925.4,2925.3,0.9104]
[1752339326841,0.68347,2925.2,2925.1,1.59387]
[1752339327152,1.67487,2925.2,2925.1,1.59387]
[1752339327545,2.76713582,2925.2,2925.1,1.59387]
[1752339327744,2.76713582,2925.2,2925.1,0.9104]
[1752339327949,0.68349,2925.1,2925.0,4.8523]
[1752339328252,1.67489,2925.1,2925.0,1.5939]
[1752339328554,1.67489,2925.1,2925.0,0.9104]
[1752339328749,1.67489,2925.1,2925.0,1.59392]
[1752339329050,1.67489,2925.1,2925.0,0.68352]
[1752339329246,1.67489,2925.1,2925.0,1.59392]
[1752339329546,1.67489,2925.1,2925.0,3.21842]
[1752339329547,0.9901,2925.1,2925.0,3.21842]
[1752339331252,2.76585582,2925.1,2925.0,2.5349]
[1752339331448,2.76585582,2925.1,2925.0,2.23402]
[1752339331648,2.76585582,2925.1,2925.0,1.5505]
[1752339332149,1.09226582,2925.1,2924.5,3.2078]
[1752339332350,1.09226582,2924.7,2924.6,3.21851]
[1752339332954,2.08236582,2924.7,2924.6,3.21851]
[1752339333547,0.9901,2924.7,2924.6,3.21851]
[1752339337349,0.9918,2924.7,2924.6,3.21851]
[1752339338456,0.9901,2924.7,2924.6,3.21851]
[1752339341360,0.9138,2924.9,2924.8,3.27956]
[1752339341560,0.9155,2924.9,2924.8,3.27956]
[1752339342953,0.9169,2924.9,2924.8,2.32596]
[1752339343159,1.60044,2924.9,2924.8,2.32596]
[1752339343561,0.9169,2924.9,2924.8,2.32596]
[1752339343763,1.60044,2924.9,2924.8,2.32596]
[1752339344259,1.60044,2924.9,2924.8,0.68356]
[1752339344762,0.9169,2924.9,2924.8,1.66946]
[1752339345259,0.9155,2924.9,2924.8,2.32596]
[1752339345459,0.9155,2924.9,2924.8,3.27956]
[1752339347159,4.80679,2925.1,2925.0,2.596]
[1752339347368,5.89905582,2925.1,2925.0,3.27952]
[1752339347861,5.89905582,2925.1,2925.0,2.32592]
[1752339348060,5.89905582,2925.1,2925.0,1.66942]
[1752339348466,5.89905582,2925.1,2925.0,2.32592]
[1752339348864,5.21556582,2925.1,2925.0,3.27952]
[1752339349065,5.21556582,2925.1,2925.0,2.32592]
[1752339349267,5.21556582,2925.1,2925.0,3.27952]
[1752339349661,5.89905582,2925.1,2925.0,3.27952]
[1752339351664,5.89905582,2925.1,2925.0,2.596]
[1752339352170,5.89905582,2925.1,2925.0,3.27952]
[1752339352359,5.89905582,2925.1,2925.0,2.596]
[1752339352562,5.89905582,2925.1,2925.0,3.27952]
[1752339352765,4.80509,2925.1,2925.0,3.27952]
[1752339353069,5.89905582,2925.1,2925.0,3.27952]
[1752339354767,2.69125582,2925.1,2925.0,3.27952]
[1752339355364,3.2078,2925.4,2925.1,0.9536]
[1752339355570,0.9155,2925.2,2925.1,2.32589]
[1752339355869,3.89123,2925.4,2925.2,0.6565]
[1752339356064,3.89117,2925.7,2925.3,1.09226582]
[1752339356270,3.2078,2925.7,2925.6,3.27938]
[1752339356464,6.16170821,2925.7,2925.6,3.27938]
[1752339356665,6.84505821,2925.7,2925.6,3.27938]
[1752339357165,6.84505821,2925.7,2925.6,2.596]
[1752339357371,3.63725821,2925.7,2925.6,2.596]
[1752339357568,3.63725821,2925.7,2925.6,3.27938]
[1752339358277,2.68941582,2925.7,2925.6,3.27938]
[1752339361674,5.89721582,2925.7,2925.6,3.27938]
[1752339362470,5.21386582,2925.7,2925.6,3.27938]
[1752339363875,5.89721582,2925.7,2925.6,3.27938]
[1752339365576,5.89721582,2925.7,2925.6,2.596]
[1752339365776,5.89721582,2925.7,2925.6,3.27938]
[1752339365974,5.89721582,2925.7,2925.6,1.6424]
[1752339366371,5.89721582,2925.7,2925.6,1.66928]
[1752339366570,5.89831582,2925.7,2925.6,1.66928]
[1752339366776,5.89831582,2925.7,2925.6,2.29208]
[1752339366977,5.89831582,2925.7,2925.6,2.5155]
[1752339367176,5.89831582,2925.7,2925.6,3.19888]
[1752339367979,5.89831582,2925.7,2925.6,2.29208]
[1752339368167,5.89831582,2925.7,2925.6,0.9859]
[1752339368371,5.89831582,2925.7,2925.6,1.66928]
[1752339368677,5.89831582,2925.7,2925.6,2.29208]
[1752339368977,5.89831582,2925.7,2925.6,1.66928]
[1752339369174,0.9607,2925.3,2925.2,2.4652]
[1752339369371,2.73644582,2925.3,2925.2,2.4652]
[1752339373275,2.73644582,2925.3,2925.2,0.9068]
[1752339373479,0.68466,2924.8,2924.7,2.4652]
[1752339373682,2.73652582,2924.8,2924.7,2.4652]
[1752339374675,3.2078,2925.3,2925.1,1.5584]
[1752339374873,3.2078,2925.3,2925.2,3.14867]
[1752339375070,5.10289508,2925.3,2925.2,3.14867]
[1752339375281,5.78744508,2925.3,2925.2,3.14867]
[1752339375470,5.94421582,2925.3,2925.2,3.14867]
[1752339375874,5.94421582,2925.3,2925.2,2.4652]
[1752339376378,5.94421582,2925.3,2925.2,3.14867]
[1752339377880,5.94421582,2925.3,2925.2,2.4652]
[1752339378077,5.94421582,2925.3,2925.2,3.14867]
[1752339379176,5.94421582,2925.3,2925.2,2.4652]
[1752339379383,6.87978456,2925.3,2925.2,1.5584]
[1752339379979,6.87978456,2925.3,2925.2,0.9356]
[1752339381688,0.68464,2924.9,2924.8,3.14875]
[1752339381885,2.73650582,2924.9,2924.8,3.14875]
[1752339382877,2.73650582,2924.9,2924.8,2.4652]
[1752339385488,2.73650582,2924.9,2924.8,1.5584]
[1752339385686,3.2078,2925.0,2924.8,3.55746582]
[1752339385882,0.68352,2925.1,2925.0,1.3063]
[1752339386084,1.64312,2925.1,2925.0,3.1487]
[1752339387278,0.9607,2925.1,2925.0,3.1487]
[1752339388979,1.64419,2925.1,2925.0,3.1487]
[1752339389589,0.9607,2925.1,2925.0,3.1487]
[1752339389891,0.9596,2925.3,2925.2,3.14867]
[1752339390091,2.57911372,2925.3,2925.2,3.14867]
[1752339390686,1.64415,2925.3,2925.2,3.14867]
[1752339391291,1.64415,2925.3,2925.2,2.4652]
[1752339392489,1.64415,2925.3,2925.2,2.24187]
[1752339392689,2.57952915,2925.3,2925.2,2.24187]